bitfinex/quotes_BTCUSD_20240811
["timestamp","ask_amount","ask_price","bid_price","bid_amount"]
[1723393278848,0.00831,60224.0,60223.0,1.61837869]
[1723393279078,0.00831,60224.0,60223.0,1.38590969]
[1723393279317,0.00831,60224.0,60223.0,1.4091076]
[1723393279540,0.00831,60224.0,60223.0,1.29173478]
[1723393279796,0.00831,60224.0,60223.0,1.26703687]
[1723393280016,0.00831,60224.0,60223.0,1.28103687]
[1723393280229,0.00831,60224.0,60223.0,1.11563687]
[1723393280477,0.00831,60224.0,60223.0,0.84498692]
[1723393280695,0.00911209,60224.0,60223.0,0.87298692]
[1723393280957,0.00831,60224.0,60223.0,1.10545592]
[1723393281168,0.00831,60224.0,60223.0,1.09145592]
[1723393281385,0.00831,60224.0,60223.0,1.10545592]
[1723393281599,0.00831,60224.0,60223.0,1.09145592]
[1723393281849,0.00831,60224.0,60223.0,1.07745592]
[1723393282065,0.01681,60224.0,60223.0,1.11445592]
[1723393282277,0.00831,60224.0,60223.0,1.11445592]
[1723393282799,0.01681,60224.0,60223.0,1.11445592]
[1723393283005,0.00831,60224.0,60223.0,1.12845592]
[1723393283665,0.00831,60224.0,60223.0,1.13765383]
[1723393283889,0.00831,60224.0,60223.0,1.21855383]
[1723393284614,0.00831,60224.0,60223.0,1.21705383]
[1723393284837,0.00831,60224.0,60223.0,1.21855383]
[1723393285961,0.00803999,60224.0,60223.0,1.21855383]
[1723393286625,0.00803999,60224.0,60223.0,1.21705383]
[1723393287041,0.00803999,60224.0,60223.0,1.21855383]
[1723393287484,0.00803999,60224.0,60223.0,1.44952283]
[1723393287700,0.00803999,60224.0,60223.0,1.20785592]
[1723393289196,0.00803999,60224.0,60223.0,1.12845592]
[1723393289860,0.02734208,60224.0,60223.0,0.30804892]
[1723393290071,0.02734208,60224.0,60223.0,0.19181492]
[1723393290325,0.10664208,60224.0,60223.0,0.028]
[1723393290579,0.45946536,60224.0,60223.0,0.028]
[1723393290795,0.11076836,60224.0,60223.0,0.028]
[1723393291009,0.11076836,60224.0,60223.0,0.130234]
[1723393291228,0.11076836,60224.0,60223.0,0.116234]
[1723393291450,0.11076836,60224.0,60223.0,0.121234]
[1723393291658,0.10464208,60224.0,60223.0,0.367703]
[1723393291921,0.1087679,60224.0,60223.0,0.130234]
[1723393292365,0.1087679,60224.0,60223.0,0.116234]
[1723393293002,0.01930209,60217.0,60216.0,0.348744]
[1723393293220,0.10114855,60217.0,60216.0,0.63555892]
[1723393293409,0.10114855,60217.0,60216.0,0.86805492]
[1723393293655,0.10527341,60217.0,60216.0,0.86805492]
[1723393293891,0.10527341,60217.0,60216.0,0.471744]
[1723393294098,0.10114855,60217.0,60216.0,0.70424]
[1723393294338,0.1062735,60217.0,60216.0,0.71724]
[1723393294562,0.09547141,60217.0,60216.0,0.73124]
[1723393294769,0.09134646,60217.0,60216.0,0.73124]
[1723393295212,0.001,60217.0,60216.0,1.12755092]
[1723393295647,0.001,60217.0,60216.0,1.21035092]
[1723393296296,0.001,60217.0,60216.0,1.28234883]
[1723393296514,0.001,60217.0,60216.0,1.28084883]
[1723393296722,0.001,60217.0,60216.0,1.51334483]
[1723393296949,0.001,60217.0,60216.0,1.51484483]
[1723393297165,0.001,60217.0,60216.0,1.51334483]
[1723393297376,0.001,60217.0,60216.0,1.28084883]
[1723393297808,0.001,60217.0,60216.0,1.27165092]
[1723393298489,0.001,60217.0,60216.0,1.40952824]
[1723393298710,0.001,60217.0,60216.0,1.27165092]
[1723393299807,0.001,60217.0,60216.0,1.50414692]
[1723393300021,0.001,60217.0,60216.0,1.27165092]
[1723393300462,0.001,60217.0,60216.0,1.85234883]
[1723393300683,0.00803999,60224.0,60223.0,0.73596991]
[1723393300899,0.00803999,60224.0,60223.0,1.82657772]
[1723393301115,0.0001,60229.0,60228.0,0.59032291]
[1723393301363,0.0001,60229.0,60228.0,1.47989272]
[1723393301810,0.0001,60229.0,60228.0,1.47069481]
[1723393302676,0.0001,60229.0,60228.0,1.53961924]
[1723393302911,0.0086,60229.0,60228.0,1.30716924]
[1723393303125,0.0001,60229.0,60228.0,1.16931384]
[1723393303350,0.0001,60229.0,60228.0,1.3313684]
[1723393303838,0.0086,60229.0,60228.0,1.3173684]
[1723393304065,0.0001,60229.0,60228.0,1.3173684]
[1723393304284,0.0001,60229.0,60228.0,1.51691254]
[1723393305020,0.0001,60229.0,60228.0,1.3453684]
[1723393305529,0.0001,60229.0,60228.0,1.51211045]
[1723393305776,0.0001,60229.0,60228.0,1.69842365]
[1723393306265,0.0001,60229.0,60228.0,1.67042365]
[1723393306499,0.0001,60229.0,60228.0,1.91687365]
[1723393306953,0.000929,60229.0,60228.0,1.902554]
[1723393307412,0.000929,60229.0,60228.0,1.684104]
[1723393307887,0.000929,60229.0,60228.0,1.916554]
[1723393308079,0.000929,60229.0,60228.0,1.698104]
[1723393308591,0.000929,60229.0,60228.0,1.670104]
[1723393308827,0.000929,60229.0,60228.0,1.684104]
[1723393309050,0.000929,60229.0,60228.0,1.698104]
[1723393309979,0.000929,60229.0,60228.0,1.68890609]
[1723393310201,0.000929,60229.0,60228.0,1.698104]
[1723393310448,0.000929,60229.0,60228.0,1.68880084]
[1723393310913,0.000929,60229.0,60228.0,1.31089355]
[1723393311103,0.000929,60229.0,60228.0,1.68882688]
[1723393311357,0.000929,60229.0,60228.0,1.51651679]
[1723393311577,0.000929,60229.0,60228.0,1.34537157]
[1723393312284,0.000929,60229.0,60228.0,1.13859834]
[1723393312508,0.000929,60229.0,60228.0,1.68898053]
[1723393312750,0.000929,60229.0,60228.0,1.51666683]
[1723393313421,0.000929,60229.0,60228.0,1.68897812]
[1723393313928,0.000929,60229.0,60228.0,0.5885882]
[1723393313929,0.138829,60229.0,60228.0,0.5885882]
[1723393314148,0.50680009,60229.0,60228.0,0.16585436]
[1723393314380,0.74537526,60229.0,60228.0,0.16585436]
[1723393314618,0.74537526,60229.0,60228.0,0.028]
[1723393315078,0.348697,60224.0,60223.0,0.0009119]
[1723393315327,0.82140846,60224.0,60223.0,0.0009119]
[1723393315555,0.82553198,60224.0,60223.0,0.0009119]
[1723393315833,0.82633407,60224.0,60223.0,0.0009119]
[1723393316780,0.82633407,60224.0,60223.0,0.0149119]
[1723393317516,1.05879907,60224.0,60223.0,0.0149119]
[1723393318002,0.82633407,60224.0,60223.0,0.0009119]
[1723393318268,0.82633407,60224.0,60223.0,0.0149119]
[1723393318496,0.82633407,60224.0,60223.0,0.0039119]
[1723393318749,0.82633407,60224.0,60223.0,0.0179119]
[1723393318987,0.82633407,60224.0,60223.0,0.0149119]
[1723393319227,0.82633407,60224.0,60223.0,0.0179119]
[1723393319726,0.64244209,60216.0,60215.0,0.0009119]
[1723393319967,0.96470347,60216.0,60215.0,0.0009119]
[1723393320212,1.19719947,60216.0,60215.0,0.0009119]
[1723393320448,1.44380764,60216.0,60215.0,0.0009119]
[1723393320709,1.21131164,60216.0,60215.0,0.0009119]
[1723393321229,1.23131164,60216.0,60215.0,0.0009119]
[1723393321484,0.01930209,60186.0,60185.0,0.116308]
[1723393321735,0.01930209,60186.0,60185.0,0.51273892]
[1723393321976,0.00491327,60186.0,60185.0,0.65070116]
[1723393322238,0.00491327,60186.0,60185.0,0.74535492]
[1723393322467,0.00080209,60186.0,60185.0,0.74535492]
[1723393322741,0.0085,60179.0,60167.0,0.00919791]
[1723393323001,0.01930209,60182.0,60181.0,0.116315]
[1723393323228,0.01258711,60178.0,60177.0,0.116323]
[1723393323460,0.0085,60174.0,60170.0,0.16381492]
[1723393323681,0.0085,60175.0,60174.0,0.348987]
[1723393323878,0.0085,60175.0,60174.0,0.116329]
[1723393323879,0.00834505,60175.0,60174.0,0.116329]
[1723393324174,0.00834505,60176.0,60175.0,0.581634]
[1723393324407,0.00834505,60176.0,60175.0,0.28014192]
[1723393324641,0.00834505,60176.0,60175.0,0.30314192]
[1723393325412,0.00834505,60176.0,60175.0,0.18681492]
[1723393325656,0.01134505,60176.0,60175.0,0.30714192]
[1723393325883,0.01134505,60176.0,60175.0,0.18181492]
[1723393325884,0.02014714,60176.0,60175.0,0.18181492]
[1723393326645,0.02418047,60176.0,60175.0,0.18181492]
[1723393326888,0.02214714,60176.0,60175.0,0.18181492]
[1723393327180,0.02014714,60176.0,60175.0,0.29814192]
[1723393327446,0.00583478,60176.0,60175.0,0.55379592]
[1723393327709,0.00914714,60177.0,60176.0,0.348975]
[1723393327968,0.00914714,60177.0,60163.0,0.009119]
[1723393327969,0.00834505,60166.0,60163.0,0.009119]
[1723393328196,0.00834505,60164.0,60163.0,0.125469]
[1723393328429,0.00834505,60164.0,60163.0,0.35817]
[1723393328655,0.00834505,60164.0,60163.0,0.75468592]
[1723393328934,0.00834505,60164.0,60163.0,0.17293392]
[1723393329196,0.00834505,60164.0,60163.0,0.009119]
[1723393329197,0.01914714,60164.0,60163.0,0.009119]
[1723393329680,0.02317701,60164.0,60163.0,0.009119]
[1723393329921,0.02517701,60164.0,60163.0,0.023119]
[1723393330608,0.02617701,60164.0,60163.0,0.027119]
[1723393331105,0.02617701,60164.0,60163.0,0.013119]
[1723393331365,0.02517701,60164.0,60163.0,0.023119]
[1723393331616,0.14252501,60164.0,60163.0,0.050119]
[1723393331850,0.02617701,60164.0,60163.0,0.050119]
[1723393332314,0.02417701,60164.0,60163.0,0.166469]
[1723393332541,0.02617701,60164.0,60163.0,0.166469]
[1723393332973,0.02617701,60164.0,60163.0,0.050119]
[1723393334310,0.02417701,60164.0,60163.0,0.33028392]
[1723393334527,0.02417701,60164.0,60163.0,0.21393392]
[1723393334730,0.02617701,60164.0,60163.0,0.21393392]
[1723393334937,0.02617701,60164.0,60163.0,0.33028392]
[1723393335160,0.02617701,60164.0,60163.0,0.56298492]
[1723393335161,0.02417701,60164.0,60163.0,0.56298492]
[1723393335595,0.02214714,60164.0,60163.0,0.33028392]
[1723393335812,0.02616893,60164.0,60163.0,0.33028392]
[1723393336935,0.01336684,60164.0,60163.0,0.56298492]
[1723393337122,0.02416893,60164.0,60163.0,0.56298492]
[1723393337775,0.01336684,60164.0,60163.0,0.56298492]
[1723393338432,0.01321134,60164.0,60163.0,0.56298492]
[1723393338640,0.10881343,60164.0,60163.0,0.21393392]
[1723393338863,0.10881343,60164.0,60163.0,0.33028392]
[1723393342551,0.10881343,60164.0,60163.0,0.21393392]
[1723393342781,0.10881343,60164.0,60163.0,0.050119]
[1723393342994,0.22516143,60164.0,60163.0,0.050119]
[1723393343211,0.22516143,60164.0,60163.0,0.027119]
[1723393343212,0.75445543,60164.0,60163.0,0.027119]
[1723393343453,0.97680738,60164.0,60163.0,0.027119]
[1723393343662,0.98715243,60164.0,60163.0,0.027119]
[1723393344356,0.75361093,60164.0,60163.0,0.009119]
[1723393344565,0.13951693,60164.0,60163.0,0.016119]
[1723393344784,0.14251693,60164.0,60163.0,0.039119]
[1723393345395,0.02616893,60164.0,60163.0,0.039119]
[1723393345812,0.37521393,60164.0,60163.0,0.039119]
[1723393346026,0.37521393,60164.0,60163.0,0.016119]
[1723393346243,0.60791093,60164.0,60163.0,0.016119]
[1723393346668,0.69041093,60164.0,60163.0,0.016119]
[1723393348887,0.45771393,60164.0,60163.0,0.016119]
[1723393349579,0.69041093,60164.0,60163.0,0.016119]
[1723393350222,0.22501693,60164.0,60163.0,0.016119]
[1723393350686,0.45771393,60164.0,60163.0,0.016119]
[1723393353115,0.69041093,60164.0,60163.0,0.016119]
[1723393354181,0.37521393,60164.0,60163.0,0.016119]
[1723393354374,0.37521393,60164.0,60163.0,0.15415059]
[1723393354643,0.60791093,60164.0,60163.0,0.15415059]
[1723393355051,0.37521393,60164.0,60163.0,0.016119]
[1723393355271,0.37521393,60164.0,60163.0,0.15415014]
[1723393358881,0.60791093,60164.0,60163.0,0.15415014]
[1723393359516,0.69041093,60164.0,60163.0,0.15415014]
[1723393360175,0.69041093,60164.0,60163.0,0.016119]
[1723393360400,0.69041093,60164.0,60163.0,0.15415446]
[1723393361287,0.98570793,60164.0,60163.0,0.016119]
[1723393361716,1.39221985,60164.0,60163.0,0.016119]
[1723393361934,1.51221985,60164.0,60163.0,0.016119]
[1723393362140,1.62281627,60164.0,60163.0,0.016119]
[1723393362356,1.62281627,60164.0,60163.0,0.009119]
[1723393362357,1.62181627,60164.0,60163.0,0.009119]
[1723393362588,1.62181627,60164.0,60163.0,0.013119]
[1723393362796,1.62281627,60164.0,60163.0,0.013119]
[1723393363013,1.62242649,60164.0,60163.0,0.009119]
[1723393363242,1.33104114,60161.0,60160.0,0.000913]
[1723393363453,2.08842688,60161.0,60160.0,0.000913]
[1723393363669,1.85969287,60161.0,60160.0,0.000913]
[1723393363890,1.79406851,60161.0,60160.0,0.000913]
[1723393364756,2.09283079,60161.0,60160.0,0.000913]
[1723393364982,2.09583079,60161.0,60160.0,0.000913]
[1723393365220,2.09283079,60161.0,60160.0,0.000913]
[1723393365426,2.09583079,60161.0,60160.0,0.000913]
[1723393365630,2.09983079,60161.0,60160.0,0.001913]
[1723393366059,2.09583079,60161.0,60160.0,0.000913]
[1723393366270,2.03377651,60161.0,60160.0,0.001913]
[1723393366899,3.30287651,60161.0,60160.0,0.001913]
[1723393370700,3.46702621,60161.0,60160.0,0.001913]
[1723393370919,3.51633076,60161.0,60160.0,0.001913]
[1723393371131,3.60810141,60161.0,60160.0,0.001913]
[1723393371340,3.60809034,60161.0,60160.0,0.001913]
[1723393371572,3.60809034,60161.0,60156.0,0.010913]
[1723393371573,1.47342914,60157.0,60156.0,0.010913]
[1723393371776,1.74119653,60157.0,60156.0,0.010913]
[1723393372224,1.09849014,60152.0,60139.0,0.000913]
[1723393372444,0.52263214,60140.0,60139.0,0.000913]
[1723393372649,1.60581706,60140.0,60139.0,0.000913]
[1723393372887,1.57976327,60140.0,60139.0,0.000913]
[1723393373529,1.58376327,60140.0,60139.0,0.001913]
[1723393374368,1.18715835,60140.0,60139.0,0.001913]
[1723393374587,0.84385835,60140.0,60139.0,0.001913]
[1723393374809,0.83985835,60140.0,60139.0,0.002913]
[1723393375010,0.60706835,60140.0,60139.0,0.002913]
[1723393375256,0.62106835,60140.0,60139.0,0.003913]
[1723393375492,0.62106835,60140.0,60139.0,0.001913]
[1723393375703,0.60706835,60140.0,60139.0,0.000913]
[1723393375907,0.61006835,60140.0,60139.0,0.000913]
[1723393376547,0.60706835,60140.0,60139.0,0.000913]
[1723393376960,0.61006835,60140.0,60139.0,0.002913]
[1723393377186,0.60906835,60140.0,60139.0,0.000913]
[1723393377410,0.60906835,60140.0,60139.0,0.002913]
[1723393377631,0.61006835,60140.0,60139.0,0.002913]
[1723393378082,0.60806835,60140.0,60139.0,0.002913]
[1723393378316,0.60506835,60140.0,60139.0,0.000913]
[1723393378571,0.60706835,60140.0,60139.0,0.002913]
[1723393378805,0.60806835,60140.0,60139.0,0.002913]
[1723393381159,0.68496835,60140.0,60139.0,0.002913]
[1723393381376,0.91775835,60140.0,60139.0,0.002913]
[1723393381839,0.68496835,60140.0,60139.0,0.000913]
[1723393382094,0.60706835,60140.0,60139.0,0.000913]
[1723393382319,0.60806835,60140.0,60139.0,0.002913]
[1723393382532,0.61106835,60140.0,60139.0,0.002913]
[1723393382957,0.84085835,60140.0,60139.0,0.002913]
[1723393383397,0.84085835,60140.0,60139.0,0.000913]
[1723393383398,0.84185835,60140.0,60139.0,0.000913]
[1723393383607,0.84085835,60140.0,60139.0,0.000913]
[1723393384259,0.84185835,60140.0,60139.0,0.002913]
[1723393384694,1.34797327,60140.0,60139.0,0.000913]
[1723393384901,2.61707327,60140.0,60139.0,0.002913]
[1723393385117,2.62007327,60140.0,60139.0,0.002913]
[1723393385531,2.61707327,60140.0,60139.0,0.002913]
[1723393385964,2.61807327,60140.0,60139.0,0.002913]
[1723393386407,2.61707327,60140.0,60139.0,0.002913]
[1723393386665,2.61607327,60140.0,60139.0,0.000913]
[1723393387012,2.61707327,60140.0,60139.0,0.002913]
[1723393387220,2.85913254,60140.0,60139.0,0.000913]
[1723393387632,2.96913254,60140.0,60139.0,0.002913]
[1723393387848,2.97213254,60140.0,60139.0,0.002913]
[1723393388288,2.98913254,60140.0,60139.0,0.000913]
[1723393388737,2.99613254,60140.0,60139.0,0.001913]
[1723393388884,3.22892254,60140.0,60139.0,0.001913]
[1723393389187,2.97078749,60140.0,60139.0,0.000913]
[1723393389366,2.98313254,60140.0,60139.0,0.001913]
[1723393389770,3.00313254,60140.0,60139.0,0.001913]
[1723393390179,3.00713254,60140.0,60139.0,0.001913]
[1723393390620,3.00313254,60140.0,60139.0,0.001913]
[1723393390823,2.99413254,60140.0,60139.0,0.000913]
[1723393391026,2.98913254,60140.0,60139.0,0.000913]
[1723393391280,2.98913254,60140.0,60139.0,0.001913]
[1723393391281,3.07092531,60140.0,60139.0,0.001913]
[1723393391509,3.07592531,60140.0,60139.0,0.001913]
[1723393391956,3.06192531,60140.0,60139.0,0.000913]
[1723393392373,3.05592531,60140.0,60139.0,0.001913]
[1723393392612,2.77713254,60140.0,60139.0,0.001913]
[1723393392819,0.62606835,60140.0,60139.0,0.001913]
[1723393393032,0.62606835,60140.0,60139.0,0.064513]
[1723393393246,0.39327835,60140.0,60139.0,0.064513]
[1723393393669,0.03709335,60140.0,60139.0,0.064513]
[1723393393877,0.03709335,60140.0,60139.0,0.143213]
[1723393394095,0.04209335,60140.0,60139.0,0.143213]
[1723393394296,0.03909335,60140.0,60139.0,0.143213]
[1723393394530,0.02509335,60140.0,60139.0,0.142213]
[1723393394737,0.04009335,60140.0,60139.0,0.145213]
[1723393395150,0.03909335,60140.0,60139.0,0.143213]
[1723393395371,0.37427835,60140.0,60139.0,0.142213]
[1723393395684,0.37427835,60140.0,60139.0,0.144213]
[1723393395685,0.02509335,60140.0,60139.0,0.144213]
[1723393396170,0.14148835,60140.0,60139.0,0.144213]
[1723393397057,0.02509335,60140.0,60139.0,0.144213]
[1723393397288,0.02409335,60140.0,60139.0,0.147213]
[1723393398404,0.14048835,60140.0,60139.0,0.147213]
[1723393398648,0.37527835,60140.0,60139.0,0.147213]
[1723393399848,0.14248835,60140.0,60139.0,0.147213]
[1723393401231,0.60806835,60140.0,60139.0,0.005913]
[1723393402081,0.60806835,60140.0,60139.0,0.003913]
[1723393402508,0.60806835,60140.0,60139.0,0.004913]
[1723393403415,0.60806835,60140.0,60139.0,0.001913]
[1723393403416,0.60706835,60140.0,60139.0,0.001913]
[1723393403850,0.60806835,60140.0,60139.0,0.004913]
[1723393404053,0.60706835,60140.0,60139.0,0.001913]
[1723393404261,0.60706835,60140.0,60139.0,0.004913]
[1723393404486,0.60806835,60140.0,60139.0,0.003913]
[1723393405327,0.68386835,60140.0,60139.0,0.003913]
[1723393405790,0.68486835,60140.0,60139.0,0.003913]
[1723393406640,0.37627835,60140.0,60139.0,0.003913]
[1723393406852,0.37627835,60140.0,60139.0,0.082213]
[1723393407489,0.60906835,60140.0,60139.0,0.082213]
[1723393407696,0.60706835,60140.0,60139.0,0.079213]
[1723393407903,0.60806835,60140.0,60139.0,0.083213]
[1723393408912,0.37527835,60140.0,60139.0,0.083213]
[1723393409320,0.60806835,60140.0,60139.0,0.083213]
[1723393409748,0.60806835,60140.0,60139.0,0.004913]
[1723393410206,1.14407327,60140.0,60139.0,0.004913]
[1723393410862,1.14307327,60140.0,60139.0,0.000913]
[1723393411071,1.24302893,60140.0,60139.0,0.003913]
[1723393411275,1.14707327,60140.0,60139.0,0.000913]
[1723393411692,1.14807327,60140.0,60139.0,0.003913]
[1723393411900,1.25702453,60140.0,60139.0,0.003913]
[1723393412114,1.15807327,60140.0,60139.0,0.003913]
[1723393412527,1.28176237,60140.0,60139.0,0.003913]
[1723393412743,1.53455237,60140.0,60139.0,0.003913]
[1723393412943,1.39086327,60140.0,60139.0,0.003913]
[1723393413154,1.51456093,60140.0,60139.0,0.003913]
[1723393413587,1.14807327,60140.0,60139.0,0.003913]
[1723393413796,1.24705857,60140.0,60139.0,0.003913]
[1723393414030,1.10765857,60140.0,60139.0,0.003913]
[1723393414238,0.89436286,60140.0,60139.0,0.003913]
[1723393414453,0.61206835,60140.0,60139.0,0.003913]
[1723393415289,0.37927835,60140.0,60139.0,0.003913]
[1723393417212,0.61206835,60140.0,60139.0,0.003913]
[1723393419816,0.37927835,60140.0,60139.0,0.003913]
[1723393421054,0.61206835,60140.0,60139.0,0.003913]
[1723393421337,0.37927835,60140.0,60139.0,0.003913]
[1723393421543,0.14648835,60140.0,60139.0,0.003913]
[1723393421764,0.03009335,60140.0,60139.0,0.003913]
[1723393421966,0.14648835,60140.0,60139.0,0.003913]
[1723393422686,0.14448835,60140.0,60139.0,0.003913]
[1723393422936,0.02809335,60140.0,60139.0,0.519304]
[1723393423161,0.02509335,60140.0,60139.0,0.752098]
[1723393423380,0.02509335,60140.0,60139.0,0.753098]
[1723393423607,0.02114714,60140.0,60139.0,0.91691292]
[1723393423819,0.08184646,60142.0,60139.0,0.42052192]
[1723393424030,0.08184646,60142.0,60141.0,0.725165]
[1723393424235,0.08184646,60142.0,60141.0,0.91197992]
[1723393424453,0.08264855,60142.0,60141.0,0.91197992]
[1723393424665,0.1009936,60142.0,60141.0,0.91197992]
[1723393424877,0.1009936,60142.0,60141.0,0.282593]
[1723393425092,0.1039936,60142.0,60141.0,0.515379]
[1723393425308,0.1049936,60142.0,60141.0,0.524379]
[1723393425538,0.1029936,60142.0,60141.0,0.524379]
[1723393425745,0.1029936,60142.0,60141.0,0.515379]
[1723393425746,0.1019936,60142.0,60141.0,0.515379]
[1723393426436,0.08264855,60142.0,60141.0,0.91197992]
[1723393426644,0.08364855,60142.0,60141.0,0.92297992]
[1723393426856,0.08364855,60142.0,60141.0,1.15576592]
[1723393427062,0.08464855,60142.0,60141.0,1.16476592]
[1723393427281,0.08364855,60142.0,60141.0,1.15576592]
[1723393427703,0.08384646,60142.0,60141.0,1.16476592]
[1723393427910,0.002,60142.0,60141.0,1.16476592]
[1723393428333,0.02114714,60142.0,60141.0,0.93197992]
[1723393429491,0.01280209,60142.0,60141.0,0.93197992]
[1723393429746,0.00280209,60142.0,60141.0,1.07004318]
[1723393429956,0.002,60142.0,60141.0,1.07004318]
[1723393431786,0.002,60142.0,60141.0,1.30282918]
[1723393432614,0.002,60142.0,60141.0,1.30282516]
[1723393433115,0.01034505,60142.0,60141.0,1.07003916]
[1723393433986,0.002,60142.0,60141.0,1.07003916]
[1723393436145,0.002,60142.0,60141.0,1.07004117]
[1723393437811,0.002,60142.0,60141.0,1.07004017]
[1723393438755,0.02114714,60142.0,60141.0,0.60446817]
[1723393439026,0.02114714,60142.0,60141.0,0.83725417]
[1723393439262,0.01280209,60142.0,60141.0,1.07095317]
[1723393439504,0.00280209,60142.0,60141.0,0.93289292]
[1723393439718,0.02114714,60142.0,60141.0,1.07096228]
[1723393440130,0.02114714,60142.0,60141.0,0.83817628]
[1723393440363,0.02514334,60142.0,60141.0,0.83817628]
[1723393441654,0.02114714,60142.0,60141.0,0.83817628]
[1723393441864,0.00280209,60142.0,60141.0,0.83817628]
[1723393442077,0.00601378,60142.0,60141.0,0.83817628]
[1723393442288,0.00601378,60142.0,60141.0,1.07096228]
[1723393442489,0.002,60142.0,60141.0,1.07096228]
[1723393442727,0.002,60142.0,60141.0,1.30374828]
[1723393442935,0.002,60142.0,60141.0,1.07096228]
[1723393445917,0.002,60142.0,60141.0,1.30374828]
[1723393446132,0.002,60142.0,60141.0,1.16567892]
[1723393446347,0.002,60142.0,60141.0,1.30373848]
[1723393446972,0.002,60142.0,60141.0,1.07095248]
[1723393447395,0.002,60142.0,60141.0,1.30373848]
[1723393448430,0.002,60142.0,60141.0,1.37276822]
[1723393448852,0.002,60142.0,60141.0,1.82862468]
[1723393449068,0.002,60142.0,60141.0,1.82696973]
[1723393449279,0.002,60142.0,60141.0,1.82696283]
[1723393449930,0.002,60142.0,60141.0,1.82861778]
[1723393450137,0.002,60142.0,60141.0,1.82696283]
[1723393451405,0.002,60142.0,60141.0,2.05974883]
[1723393451629,0.002,60142.0,60141.0,1.82696283]
[1723393451910,0.002,60142.0,60141.0,1.82861778]
[1723393452148,0.002,60142.0,60141.0,1.82894763]
[1723393452478,0.002,60142.0,60141.0,1.82729268]
[1723393452736,0.002,60142.0,60141.0,2.06166368]
[1723393453236,0.002,60142.0,60141.0,1.82887768]
[1723393453491,0.002,60142.0,60141.0,2.06166368]
[1723393453735,0.002,60142.0,60141.0,1.82887768]
[1723393453980,0.002,60142.0,60141.0,2.06166368]
[1723393454479,0.002,60142.0,60141.0,1.81967977]
[1723393454691,0.002,60142.0,60141.0,1.81802482]
[1723393455168,0.002,60142.0,60141.0,1.82722273]
[1723393455392,0.002,60142.0,60141.0,2.06166368]
[1723393455868,0.002,60142.0,60141.0,1.82887768]
[1723393456389,0.002,60142.0,60141.0,1.82910703]
[1723393456614,0.002,60142.0,60141.0,2.06189303]
[1723393456883,0.002,60142.0,60141.0,1.82923579]
[1723393457454,0.00083,60151.0,60150.0,0.581877]
[1723393457712,0.00083,60151.0,60150.0,0.98453178]
[1723393458195,0.00083,60151.0,60150.0,1.21728278]
[1723393458692,0.00083,60151.0,60150.0,1.22428278]
[1723393458955,0.00183,60151.0,60150.0,1.22428278]
[1723393459427,0.00183,60151.0,60150.0,1.23328278]
[1723393459428,0.00283,60151.0,60150.0,1.23328278]
[1723393459880,0.00283,60151.0,60150.0,1.53888664]
[1723393460094,0.00283,60151.0,60150.0,2.05373896]
[1723393460534,0.00283,60151.0,60150.0,2.1283016]
[1723393460960,0.00283,60151.0,60150.0,2.13821881]
[1723393461176,0.00083,60151.0,60150.0,2.12056386]
[1723393461384,0.00083,60151.0,60150.0,2.06000122]
[1723393461591,0.00083,60151.0,60150.0,2.06165617]
[1723393461800,0.00083,60151.0,60150.0,2.07565617]
[1723393462026,0.00083,60151.0,60150.0,2.11135982]
[1723393462231,0.00083,60151.0,60150.0,2.12369979]
[1723393462438,0.00083,60151.0,60150.0,2.12535474]
[1723393462644,0.00083,60151.0,60150.0,2.11135474]
[1723393463075,0.00083,60151.0,60150.0,2.06165617]
[1723393463520,0.00083,60151.0,60150.0,2.11135474]
[1723393463750,0.00083,60151.0,60150.0,1.92235848]
[1723393463954,0.00083,60151.0,60150.0,2.11135195]
[1723393464164,0.00083,60151.0,60150.0,1.92401343]
[1723393464625,0.00083,60151.0,60150.0,1.95201343]
[1723393464829,0.00083,60151.0,60150.0,1.93801343]
[1723393465035,0.00083,60151.0,60150.0,1.92401343]
[1723393465248,0.00083,60151.0,60150.0,1.93636205]
[1723393465452,0.00083,60151.0,60150.0,1.952017]
[1723393465871,0.00083,60151.0,60150.0,1.97686132]
[1723393466294,0.00083,60151.0,60150.0,2.17504774]
[1723393466717,0.00083,60151.0,60150.0,2.06165617]
[1723393466925,0.00083,60151.0,60150.0,2.14705061]
[1723393467170,0.00083,60151.0,60150.0,2.16105061]
[1723393467377,0.00083,60151.0,60150.0,1.90231765]
[1723393467625,0.00083,60151.0,60150.0,1.81930762]
[1723393467836,0.00083,60151.0,60150.0,1.88665672]
[1723393468050,0.00083,60151.0,60150.0,1.74863665]
[1723393468257,0.00083,60151.0,60150.0,1.9023037]
[1723393468471,0.00083,60151.0,60150.0,1.90230732]
[1723393468678,0.00083,60151.0,60150.0,2.40105732]
[1723393468892,0.00083,60151.0,60150.0,2.39940237]
[1723393469101,0.00083,60151.0,60150.0,2.40105732]
[1723393469927,0.00083,60151.0,60150.0,2.48135732]
[1723393471015,0.00083,60151.0,60150.0,2.48135651]
[1723393471199,0.00083,60151.0,60150.0,2.53104947]
[1723393471651,0.00083,60162.0,60161.0,1.183186]
[1723393471869,0.00083,60162.0,60161.0,2.09783026]
[1723393472073,0.00083,60162.0,60161.0,2.26683202]
[1723393472549,0.00083,60164.0,60163.0,1.05800686]
[1723393472760,0.00083,60175.0,60174.0,0.797945]
[1723393472973,0.00083,60175.0,60174.0,1.1997764]
[1723393473192,0.00083,60175.0,60174.0,1.4554344]
[1723393474064,0.00083,60175.0,60174.0,1.6297924]
[1723393474277,0.00083,60175.0,60174.0,1.63144735]
[1723393474496,0.00083,60175.0,60174.0,1.6313996]
[1723393474711,0.00083,60175.0,60174.0,1.64004151]
[1723393475754,0.00083,60175.0,60174.0,1.27138351]
[1723393477500,0.00917505,60175.0,60174.0,1.27138351]
[1723393477913,0.00083,60175.0,60174.0,1.13341478]
[1723393478128,0.00083,60175.0,60174.0,1.27139479]
[1723393478767,0.00083,60175.0,60174.0,1.27139433]
[1723393479829,0.00163209,60175.0,60174.0,1.03873633]
[1723393480499,0.00083,60175.0,60174.0,1.03873633]
[1723393480712,0.00083,60175.0,60174.0,1.27139433]
[1723393480929,0.00083,60175.0,60174.0,1.03873633]
[1723393481132,0.00083,60175.0,60174.0,1.34719433]
[1723393481755,0.00083,60175.0,60174.0,1.20921478]
[1723393481973,0.00083,60175.0,60174.0,1.34719187]